fUST/lending_fUST_20241001
["ID","MTS","AMOUNT","RATE_DAILY","PERIOD"]
[339594354,1727724090554,500.0,0.00021999,120]
[339594355,1727724094389,500.0,0.00021999,120]
[339594356,1727724094719,500.0,0.00021999,120]
[339594357,1727724096636,500.0,0.00021999,120]
[339594358,1727724097145,500.0,0.00021999,120]
[339594359,1727724097863,280.86915765,0.00021999,120]
[339594361,1727724101282,821.09,0.00021999,120]
[339594362,1727724101763,500.0,0.00021999,120]
[339594363,1727724103650,690.88,0.00021999,120]
[339594364,1727724105550,500.0,0.00021999,120]
[339594365,1727724106895,500.0,0.00021999,120]
[339594366,1727724107274,500.0,0.00021999,120]
[339594367,1727724109977,500.0,0.00021999,120]
[339594368,1727724111054,500.0,0.00021999,120]
[339594369,1727724111612,500.0,0.00021999,120]
[339594370,1727724112142,620.33,0.00021999,120]
[339594371,1727724120072,500.0,0.00021999,120]
[339594372,1727724120609,500.0,0.00021999,120]
[339594373,1727724122857,530.24,0.00021999,120]
[339594374,1727724123160,500.0,0.00021999,120]
[339594375,1727724123877,500.0,0.00021999,120]
[339594376,1727724125952,500.0,0.00021999,120]
[339594377,1727724126782,870.86,0.00021999,120]
[339594378,1727724126993,500.0,0.00021999,120]
[339594379,1727724129381,850.46,0.00021999,120]
[339594380,1727724132965,500.0,0.00021999,120]
[339594381,1727724136395,500.0,0.00021999,120]
[339594382,1727724144408,500.0,0.00021999,120]
[339594383,1727724144514,500.0,0.00021999,120]
[339594384,1727724145727,500.0,0.00021999,120]
[339594385,1727724150262,1283.18,0.00021999,120]
[339594386,1727724150324,500.0,0.00021999,120]
[339594387,1727724152499,500.0,0.00021999,120]
[339594388,1727724152830,779.03,0.00021999,120]
[339594389,1727724153085,500.0,0.00021999,120]
[339594390,1727724154896,500.0,0.00021999,120]
[339594391,1727724156234,500.0,0.00021999,120]
[339594392,1727724157023,500.0,0.00021999,120]
[339594393,1727724161177,893.18,0.00021999,120]
[339594394,1727724161766,500.0,0.00021999,120]
[339594395,1727724162192,1407.57,0.00021999,120]
[339594396,1727724167268,504.44102868,0.00021999,120]
[339594397,1727724172751,500.0,0.00021999,120]
[339594398,1727724173392,500.0,0.00021999,120]
[339594399,1727724174204,631.12456022,0.00021999,120]
[339594400,1727724174439,500.0,0.00021999,120]
[339594401,1727724179173,500.0,0.00021999,120]
[339594402,1727724179523,500.0,0.00021999,120]
[339594403,1727724180116,234.68665069,0.00021999,120]
[339594404,1727724182611,500.0,0.00021999,120]
[339594405,1727724185049,500.0,0.00021999,120]
[339594406,1727724185094,500.0,0.00021999,120]
[339594407,1727724185979,500.0,0.00021999,120]
[339594408,1727724186136,554.32,0.00021999,120]
[339594409,1727724186365,500.0,0.00021999,120]
[339594410,1727724187143,500.0,0.00021999,120]
[339594411,1727724188019,500.0,0.00021999,120]
[339594412,1727724191930,500.0,0.00021999,120]
[339594413,1727724192202,500.0,0.00021999,120]
[339594414,1727724195920,500.0,0.00021999,120]
[339594415,1727724197285,500.0,0.00021999,120]
[339594416,1727724199310,500.0,0.00021999,120]
[339594417,1727724200520,500.0,0.00021999,120]
[339594418,1727724203961,1477.34,0.00021999,120]
[339594419,1727724205882,500.0,0.00021999,120]
[339594420,1727724209800,500.0,0.00021999,120]
[339594421,1727724210091,500.0,0.00021999,120]
[339594422,1727724211121,500.0,0.00021999,120]
[339594423,1727724211658,500.0,0.00021999,120]
[339594424,1727724212712,500.0,0.00021999,120]
[339594425,1727724214110,528.43225857,0.00021999,120]
[339594426,1727724216039,756.31,0.00021999,120]
[339594427,1727724217742,500.0,0.00021999,120]
[339594428,1727724219882,539.65,0.00021999,120]
[339594429,1727724220578,500.0,0.00021999,120]
[339594430,1727724224938,500.0,0.00021999,120]
[339594431,1727724225966,500.0,0.00021999,120]
[339594432,1727724226133,500.0,0.00021999,120]
[339594433,1727724229126,500.0,0.00021999,120]
[339594434,1727724230784,500.0,0.00021999,120]
[339594435,1727724231672,500.0,0.00021999,120]
[339594436,1727724231917,500.0,0.00021999,120]
[339594437,1727724232566,500.0,0.00021999,120]
[339594438,1727724232652,500.0,0.00021999,120]
[339594439,1727724234072,500.0,0.00021999,120]
[339594440,1727724234935,500.0,0.00021999,120]
[339594441,1727724237938,500.0,0.00021999,120]
[339594442,1727724238047,156.26293579,0.00021999,120]
[339594443,1727724238394,500.0,0.00021999,120]
[339594444,1727724243006,500.0,0.00021999,120]
[339594445,1727724243481,500.0,0.00021999,120]
[339594446,1727724246299,597.66,0.00021999,120]
[339594447,1727724246566,790.09,0.00021999,120]
[339594448,1727724250534,500.0,0.00021999,120]
[339594449,1727724250597,500.0,0.00021999,120]
[339594450,1727724253661,500.0,0.00021999,120]
[339594451,1727724254952,500.0,0.00021999,120]
[339594452,1727724259415,500.0,0.00021999,120]
[339594453,1727724259775,500.0,0.00021999,120]
[339594454,1727724259949,500.0,0.00021999,120]
[339594455,1727724262210,571.97,0.00021999,120]
[339594456,1727724267618,500.0,0.00021999,120]
[339594457,1727724268064,500.0,0.00021999,120]
[339594458,1727724268561,500.0,0.00021999,120]
[339594459,1727724275215,240.46,0.00021999,120]
[339594460,1727724276559,500.0,0.00021999,120]
[339594461,1727724279414,500.0,0.00021999,120]
[339594462,1727724280846,500.0,0.00021999,120]
[339594463,1727724282772,500.0,0.00021999,120]
[339594464,1727724283506,500.0,0.00021999,120]
[339594465,1727724284047,500.0,0.00021999,120]
[339594466,1727724284779,528.53760478,0.00021999,120]
[339594467,1727724284953,500.0,0.00021999,120]
[339594468,1727724285465,500.0,0.00021999,120]
[339594469,1727724287309,1425.0,0.00021999,120]
[339594470,1727724290576,500.0,0.00021999,120]
[339594471,1727724290652,500.0,0.00021999,120]
[339594472,1727724297458,500.0,0.00021999,120]
[339594473,1727724300348,548.54,0.00021999,120]
[339594474,1727724300607,861.45,0.00021999,120]
[339594475,1727724301058,500.0,0.00021999,120]
[339594476,1727724301497,500.0,0.00021999,120]
[339594477,1727724301778,500.0,0.00021999,120]
[339594478,1727724309541,500.0,0.00021999,120]
[339594479,1727724310351,500.0,0.00021999,120]
[339594480,1727724311803,500.0,0.00021999,120]
[339594481,1727724313462,500.0,0.00021999,120]
[339594482,1727724313929,500.0,0.00021999,120]
[339594483,1727724317274,541.37,0.00021999,120]
[339594484,1727724322516,500.0,0.00021999,120]
[339594485,1727724323837,976.04,0.00021999,120]
[339594486,1727724327129,500.0,0.00021999,120]
[339594487,1727724330662,500.0,0.00021999,120]
[339594488,1727724332816,500.0,0.00021999,120]
[339594489,1727724332862,500.0,0.00021999,120]
[339594490,1727724333235,500.0,0.00021999,120]
[339594491,1727724333476,500.0,0.00021999,120]
[339594492,1727724334433,500.0,0.00021999,120]
[339594493,1727724336402,500.0,0.00021999,120]
[339594494,1727724337273,500.0,0.00021999,120]
[339594495,1727724337343,724.84,0.00021999,120]
[339594496,1727724339207,264.79,0.00021999,120]
[339594497,1727724340444,500.0,0.00021999,120]
[339594498,1727724342217,500.0,0.00021999,120]
[339594499,1727724347310,500.0,0.00021999,120]
[339594500,1727724348636,500.0,0.00021999,120]
[339594501,1727724349648,500.0,0.00021999,120]
[339594502,1727724357303,500.0,0.00021999,120]
[339594503,1727724357660,500.0,0.00021999,120]
[339594504,1727724357702,500.0,0.00021999,120]
[339594505,1727724360542,500.0,0.00021999,120]
[339594506,1727724364063,610.05,0.00021999,120]
[339594507,1727724364350,755.1,0.00021999,120]
[339594508,1727724364470,834.58,0.00021999,120]
[339594509,1727724366770,757.93,0.00021999,120]
[339594510,1727724368184,381.04438401,0.00021999,120]
[339594511,1727724370276,500.0,0.00021999,120]
[339594512,1727724371903,340.94311853,0.00021999,120]
[339594513,1727724373664,500.0,0.00021999,120]
[339594514,1727724374361,500.0,0.00021999,120]
[339594515,1727724376661,500.0,0.00021999,120]
[339594516,1727724382470,500.0,0.00021999,120]
[339594517,1727724385267,500.0,0.00021999,120]
[339594518,1727724385406,554.86,0.00021999,120]
[339594519,1727724385607,174.1,0.00021999,120]
[339594520,1727724386122,217.49212986,0.00021999,120]
[339594521,1727724386364,500.0,0.00021999,120]
[339594522,1727724388732,500.0,0.00021999,120]
[339594523,1727724391244,500.0,0.00021999,120]
[339594524,1727724396887,460.0,0.00021999,120]
[339594525,1727724403463,500.0,0.00021999,120]
[339594526,1727724405711,500.0,0.00021999,120]
[339594527,1727724409503,869.45,0.00021999,120]
[339594528,1727724411069,500.0,0.00021999,120]
[339594529,1727724412023,515.95,0.00021999,120]
[339594530,1727724412976,500.0,0.00021999,120]
[339594531,1727724414109,500.0,0.00021999,120]
[339594532,1727724414257,508.15,0.00021999,120]
[339594533,1727724414442,500.0,0.00021999,120]
[339594534,1727724416470,500.0,0.00021999,120]
[339594535,1727724416524,500.0,0.00021999,120]
[339594536,1727724420992,500.0,0.00021999,120]
[339594537,1727724425019,500.0,0.00021999,120]
[339594538,1727724425237,500.0,0.00021999,120]
[339594539,1727724425685,500.0,0.00021999,120]
[339594540,1727724428020,500.0,0.00021999,120]
[339594541,1727724428282,500.0,0.00021999,120]
[339594542,1727724433340,500.0,0.00021999,120]
[339594543,1727724436655,500.0,0.00021999,120]
[339594544,1727724437491,500.0,0.00021999,120]
[339594545,1727724437774,500.0,0.00021999,120]
[339594546,1727724447670,500.0,0.00021999,120]
[339594547,1727724447717,500.0,0.00021999,120]
[339594548,1727724448637,500.0,0.00021999,120]
[339594549,1727724451364,500.0,0.00021999,120]
[339594550,1727724452237,625.8,0.00021999,120]
[339594551,1727724457095,500.0,0.00021999,120]
[339594552,1727724461249,150.76645802,0.00021999,120]
[339594553,1727724462601,500.0,0.00021999,120]
[339594554,1727724469470,517.17,0.00021999,120]
[339594555,1727724471023,500.0,0.00021999,120]
[339594556,1727724471189,500.0,0.00021999,120]
[339594557,1727724475949,500.0,0.00021999,120]
[339594558,1727724483134,500.0,0.00021999,120]
[339594559,1727724488014,500.0,0.00021999,120]
[339594560,1727724492398,500.0,0.00021999,120]
[339594561,1727724494497,703.0,0.00021999,120]
[339594562,1727724497808,500.0,0.00021999,120]
[339594563,1727724502493,500.0,0.00021999,120]
[339594564,1727724503502,500.0,0.00021999,120]
[339594565,1727724510872,500.0,0.00021999,120]
[339594566,1727724511444,500.0,0.00021999,120]
[339594567,1727724512262,500.0,0.00021999,120]
[339594568,1727724512935,500.0,0.00021999,120]
[339594569,1727724516357,500.0,0.00021999,120]
[339594570,1727724519792,500.0,0.00021999,120]
[339594571,1727724522576,500.0,0.00021999,120]
[339594572,1727724528784,500.0,0.00021999,120]
[339594573,1727724530325,500.0,0.00021999,120]
[339594574,1727724533868,500.0,0.00021999,120]
[339594575,1727724535710,804.94,0.00021999,120]
[339594576,1727724546261,500.0,0.00021999,120]
[339594577,1727724546826,500.0,0.00021999,120]
[339594578,1727724549258,500.0,0.00021999,120]
[339594579,1727724553056,500.0,0.00021999,120]
[339594587,1727724563230,500.0,0.00021999,120]
[339594588,1727724569414,500.0,0.00021999,120]
[339594589,1727724571234,500.0,0.00021999,120]
[339594602,1727724573051,694.64,0.00021999,120]
[339594604,1727724584654,500.0,0.00021999,120]
[339594612,1727724586476,500.0,0.00021999,120]
[339594613,1727724589863,500.0,0.00021999,120]
[339594614,1727724591338,500.0,0.00021999,120]
[339594615,1727724594286,825.55,0.00021999,120]
[339594616,1727724601401,500.0,0.00021999,120]
[339594617,1727724603363,500.0,0.00021999,120]
[339594622,1727724607631,500.0,0.00021999,120]
[339594627,1727724610700,969.02,0.00021999,120]
[339594628,1727724616674,500.0,0.00021999,120]
[339594629,1727724621473,500.0,0.00021999,120]
[339594630,1727724624719,500.0,0.00021999,120]
[339594631,1727724629327,500.0,0.00021999,120]
[339594657,1727724632185,-890.52,0.00010959,2]
[339594658,1727724632195,-300.0,0.00012452,2]
[339594659,1727724632205,-300.0,0.00012452,2]
[339594660,1727724632215,-24900.0,0.00012453,2]
[339594661,1727724632224,-513.983589,0.00013151,2]
[339594662,1727724632234,-525.0,0.00013625,2]
[339594663,1727724632244,-150.0,0.00013625,2]
[339594664,1727724632253,-420.0,0.00013663,2]
[339594665,1727724632263,-600.0,0.00013676,2]
[339594666,1727724632273,-300.0,0.00013697,2]
[339594667,1727724632283,-173.0,0.00013698,2]
[339594668,1727724632293,-166.666666,0.00013699,2]
[339594669,1727724632303,-506.604716,0.00013699,2]
[339594670,1727724632313,-2490.177558,0.00013699,2]
[339594671,1727724632322,-404.55081669,0.00013699,2]
[339594672,1727724632331,-7069.19095078,0.00013721,2]
[339594673,1727724632341,-606.7001323,0.000138,2]
[339594674,1727724632351,-600.0,0.00013819,2]
[339594675,1727724632360,-209.3635278,0.00013884,2]
[339594676,1727724632370,-432.0,0.000139,2]
[339594677,1727724632380,-600.0,0.00013961,2]
[339594678,1727724632392,-5768.61210491,0.00014,4]
[339594679,1727724632402,-166.666666,0.00014019,2]
[339594680,1727724632413,-432.0,0.0001406,2]
[339594681,1727724632423,-600.0,0.00014104,2]
[339594682,1727724632434,-208.89633672,0.00014173,2]
[339594683,1727724632443,-432.0,0.0001422,2]
[339594684,1727724632453,-150.01,0.00014236,2]
[339594685,1727724632462,-3367.74314736,0.00014236,2]
[339594686,1727724632473,-12567.9418057,0.00014237,2]
[339594687,1727724632483,-518.09,0.00014246,2]
[339594688,1727724632492,-600.0,0.00014246,2]
[339594689,1727724632507,-163.641933,0.00014285,2]
[339594690,1727724632518,-166.666666,0.0001434,2]
[339594691,1727724632528,-477.31235627,0.00014341,2]
[339594692,1727724632538,-694.020992,0.00014358,2]
[339594693,1727724632547,-4002.169001,0.00014358,2]
[339594694,1727724632557,-209.3635278,0.00014377,2]
[339594695,1727724632567,-209.3635278,0.00014377,2]
[339594696,1727724632577,-209.3635278,0.00014377,2]
[339594697,1727724632587,-209.3635278,0.00014377,2]
[339594698,1727724632597,-209.3635278,0.00014377,2]
[339594699,1727724632606,-209.3635278,0.00014377,2]
[339594700,1727724632616,-209.3635278,0.00014377,2]
[339594701,1727724632625,-209.3635278,0.00014377,2]
[339594702,1727724632635,-209.3635278,0.00014377,2]
[339594703,1727724632644,-209.3635278,0.00014377,2]
[339594704,1727724632654,-209.3635278,0.00014377,2]
[339594705,1727724632665,-432.0,0.0001438,2]
[339594706,1727724632675,-2490.177558,0.00014384,2]
[339594707,1727724632684,-600.0,0.00014388,2]
[339594708,1727724632694,-209.3635278,0.000144,2]
[339594709,1727724632703,-1388.041984,0.00014402,2]
[339594710,1727724632713,-555.216794,0.00014402,2]
[339594711,1727724632723,-832.825191,0.00014402,2]
[339594712,1727724632733,-500.0,0.00014438,2]
[339594713,1727724632743,-64675.69141749,0.00014508,2]
[339594714,1727724632756,-350.23752855,0.00014508,2]
[339594715,1727724632778,-10455.90320208,0.00014508,2]
[339594716,1727724632790,-2234.52878022,0.00014508,2]
[339594717,1727724633078,500.0,0.00021999,120]
[339594718,1727724633741,355.9001599,0.00021999,120]
[339594719,1727724635445,500.0,0.00021999,120]
[339594720,1727724636303,500.0,0.00021999,120]
[339594731,1727724637860,500.0,0.00021999,120]
[339594748,1727724638516,-689.49269377,0.0001357,2]
[339594749,1727724639327,500.0,0.00021999,120]
[339594750,1727724639372,500.0,0.00021999,120]
[339594754,1727724640263,-527.50730623,0.0001357,2]
[339594755,1727724640273,-150.01,0.00014236,2]
[339594756,1727724640283,-1282.65887767,0.00014236,2]
[339594757,1727724640367,-1523.79374512,0.00014236,2]
[339594758,1727724640377,-4730.60625488,0.00014407,2]
[339594759,1727724642426,500.15008008,0.00021999,120]
[339594760,1727724642488,500.0,0.00021999,120]
[339594807,1727724643497,-2421.59346545,0.00014407,2]
[339594809,1727724643508,-2656.80963455,0.00014508,2]
[339595068,1727724646103,-150.01,0.00014507,2]
[339595070,1727724646113,-35216.19683011,0.00014508,2]
[339595072,1727724646124,-60182.8962834,0.00014508,2]
[339595074,1727724646134,-163.641933,0.0001452,2]
[339595076,1727724646143,-16050.97,0.0001452,2]
[339595078,1727724646152,-518.09,0.0001452,2]
[339595080,1727724646161,-151.0,0.0001452,2]
[339595082,1727724646171,-1000.0,0.00014527,2]
[339595084,1727724646183,-1000.0,0.00014527,4]
[339595086,1727724646193,-1000.0,0.00014527,6]
[339595089,1727724646203,-1000.0,0.00014527,8]
[339595091,1727724646213,-1000.0,0.00014527,10]
[339595093,1727724646223,-1000.0,0.00014527,12]
[339595095,1727724646232,-1000.0,0.00014527,14]
[339595097,1727724646242,-1000.0,0.00014527,16]
[339595099,1727724646253,-403.35038613,0.00014527,18]
[339595101,1727724646262,-500.0,0.00014529,2]
[339595103,1727724646272,-500.0,0.00014529,2]
[339595105,1727724646282,-180.6761927,0.00014529,2]
[339595107,1727724646292,-500.0,0.00014529,2]
[339595109,1727724646301,-500.0,0.00014529,2]
[339595111,1727724646311,-500.0,0.00014529,2]
[339595113,1727724646320,-531.10545587,0.00014529,2]
[339595115,1727724646330,-57794.6836966,0.0001453,2]
[339595117,1727724646339,-30091.4481417,0.0001453,2]
[339595119,1727724646349,-600.0,0.00014531,2]
[339595121,1727724646359,-694.020992,0.00014538,2]
[339595123,1727724646369,-4002.169001,0.00014538,2]
[339595125,1727724646379,-432.0,0.0001454,2]
[339595127,1727724646389,-500.0,0.00014573,2]
[339595129,1727724646404,-500.0,0.00014573,2]
[339595131,1727724646414,-500.0,0.00014573,2]
[339595133,1727724646426,-500.0,0.00014573,2]
[339595135,1727724646435,-500.0,0.00014578,2]
[339595136,1727724646445,-500.0,0.00014578,2]
[339595137,1727724646455,-1388.041984,0.00014578,2]
[339595138,1727724646466,-555.216794,0.00014578,2]
[339595139,1727724646476,-832.825191,0.00014578,2]
[339595140,1727724646486,-474.81864683,0.00014647,2]
[339595141,1727724646495,-166.666666,0.0001466,2]
[339595142,1727724646505,-257.39989761,0.00014666,2]
[339595143,1727724646514,-970.66396886,0.00014673,2]
[339595144,1727724646524,-198.10172433,0.00014696,2]
[339595145,1727724646533,-371.96205697,0.00014696,2]
[339595146,1727724646543,-500.0,0.00014696,2]
[339595147,1727724646554,-524.42362594,0.00014696,2]
[339595148,1727724646564,-500.0,0.00014696,2]
[339595150,1727724646574,-500.0,0.00014696,2]
[339595152,1727724646583,-500.0,0.00014696,2]
[339595154,1727724646592,-500.0,0.00014696,2]
[339595156,1727724646602,-194.39683519,0.00014696,2]
[339595158,1727724646611,-321.82812524,0.00014696,2]
[339595160,1727724646621,-500.0,0.00014696,2]
[339595162,1727724646631,-500.0,0.00014696,2]
[339595164,1727724646641,-500.0,0.00014696,2]
[339595166,1727724646651,-500.0,0.00014696,2]
[339595168,1727724646660,-500.0,0.00014696,2]
[339595170,1727724646670,-500.0,0.00014696,2]
[339595172,1727724646681,-500.0,0.00014696,2]
[339595174,1727724646691,-500.0,0.00014696,2]
[339595176,1727724646701,-500.0,0.00014696,2]
[339595177,1727724646710,-500.0,0.00014696,2]
[339595178,1727724646719,-500.0,0.00014696,2]
[339595179,1727724646729,-500.0,0.00014696,2]
[339595180,1727724646738,-500.0,0.00014696,2]
[339595181,1727724646747,-511.37433,0.00014696,2]
[339595182,1727724646756,-46228.12331318,0.00014697,2]
[339595183,1727724646804,500.0,0.00021999,120]
[339595184,1727724646874,500.0,0.00021999,120]
[339595275,1727724647972,500.0,0.00021999,120]
[339595314,1727724648446,500.0,0.00021999,120]
[339595339,1727724648725,500.0,0.00021999,120]
[339595597,1727724651488,500.0,0.00021999,120]
[339595730,1727724652887,500.0,0.00021999,120]
[339595752,1727724653081,770.51,0.00021999,120]
[339595895,1727724654484,538.15,0.00021999,120]
[339595991,1727724655408,500.0,0.00021999,120]
[339595997,1727724655463,500.0,0.00021999,120]
[339596045,1727724655893,500.0,0.00021999,120]
[339596216,1727724657561,500.0,0.00021999,120]
[339596433,1727724659800,500.0,0.00021999,120]
[339596484,1727724660283,500.0,0.00021999,120]
[339596563,1727724661170,500.0,0.00021999,120]
[339596650,1727724662531,500.0,0.00021999,120]
[339596676,1727724662960,500.0,0.00021999,120]
[339596703,1727724665112,500.0,0.00021999,120]
[339596704,1727724665839,500.0,0.00021999,120]
[339596705,1727724666218,500.0,0.00021999,120]
[339596706,1727724666297,500.0,0.00021999,120]
[339596707,1727724666342,500.0,0.00021999,120]
[339596708,1727724667460,500.0,0.00021999,120]
[339596709,1727724669999,500.0,0.00021999,120]
[339596710,1727724672116,500.0,0.00021999,120]
[339596711,1727724672540,500.0,0.00021999,120]
[339596712,1727724672626,500.0,0.00021999,120]
[339596713,1727724672907,500.0,0.00021999,120]
[339596714,1727724675955,500.0,0.00021999,120]
[339596715,1727724676267,832.72,0.00021999,120]
[339596716,1727724677624,500.0,0.00021999,120]
[339596717,1727724680308,500.0,0.00021999,120]
[339596718,1727724680603,500.0,0.00021999,120]
[339596719,1727724681320,565.50882307,0.00021999,120]
[339596720,1727724682268,518.04130666,0.00021999,120]
[339596721,1727724682463,584.41386541,0.00021999,120]
[339596722,1727724683023,500.0,0.00021999,120]
[339596723,1727724683885,500.0,0.00021999,120]
[339596724,1727724684860,500.0,0.00021999,120]
[339596725,1727724686383,500.0,0.00021999,120]
[339596726,1727724686464,500.0,0.00021999,120]
[339596727,1727724689425,500.0,0.00021999,120]
[339596728,1727724689661,500.0,0.00021999,120]
[339596729,1727724690714,500.0,0.00021999,120]
[339596730,1727724695315,500.0,0.00021999,120]
[339596731,1727724697928,500.0,0.00021999,120]
[339596732,1727724698396,500.0,0.00021999,120]
[339596733,1727724700068,540.80119506,0.00021999,120]
[339596734,1727724700796,500.0,0.00021999,120]
[339596735,1727724701168,500.0,0.00021999,120]
[339596736,1727724702719,500.0,0.00021999,120]
[339596737,1727724703055,500.0,0.00021999,120]
[339596738,1727724704294,500.0,0.00021999,120]
[339596739,1727724704682,731.44,0.00021999,120]
[339596740,1727724705225,500.0,0.00021999,120]
[339596741,1727724707083,500.0,0.00021999,120]
[339596742,1727724707389,500.0,0.00021999,120]
[339596743,1727724709700,500.0,0.00021999,120]
[339596744,1727724710811,500.0,0.00021999,120]
[339596745,1727724711774,500.0,0.00021999,120]
[339596746,1727724712807,500.0,0.00021999,120]
[339596747,1727724713139,500.0,0.00021999,120]
[339596748,1727724713308,500.0,0.00021999,120]
[339596749,1727724713834,500.0,0.00021999,120]
[339596750,1727724714789,500.0,0.00021999,120]
[339596751,1727724715781,500.0,0.00021999,120]
[339596752,1727724716735,500.0,0.00021999,120]
[339596753,1727724717297,500.0,0.00021999,120]
[339596754,1727724718575,517.91,0.00021999,120]
[339596755,1727724722802,536.3,0.00021999,120]
[339596756,1727724723351,500.0,0.00021999,120]
[339596757,1727724723444,500.0,0.00021999,120]
[339596758,1727724725708,500.0,0.00021999,120]
[339596759,1727724725906,500.0,0.00021999,120]
[339596760,1727724727185,500.0,0.00021999,120]
[339596761,1727724728743,500.0,0.00021999,120]
[339596762,1727724729815,234.09777722,0.00021999,120]
[339596763,1727724731152,500.0,0.00021999,120]
[339596764,1727724731801,500.0,0.00021999,120]
[339596765,1727724732222,625.8858399,0.00021999,120]
[339596766,1727724732575,500.0,0.00021999,120]
[339596767,1727724733801,500.0,0.00021999,120]
[339596768,1727724736063,500.0,0.00021999,120]
[339596769,1727724736490,500.0,0.00021999,120]
[339596770,1727724737552,500.0,0.00021999,120]
[339596771,1727724739380,500.0,0.00021999,120]
[339596772,1727724740342,500.0,0.00021999,120]
[339596773,1727724744193,500.0,0.00021999,120]
[339596774,1727724744238,500.0,0.00021999,120]
[339596775,1727724746273,638.73,0.00021999,120]
[339596776,1727724746454,381.61776949,0.00021999,120]
[339596777,1727724747877,500.0,0.00021999,120]
[339596778,1727724748449,500.0,0.00021999,120]
[339596779,1727724748733,500.0,0.00021999,120]
[339596780,1727724749695,500.0,0.00021999,120]
[339596781,1727724750534,500.0,0.00021999,120]
[339596782,1727724751418,500.0,0.00021999,120]
[339596783,1727724751514,500.0,0.00021999,120]
[339596784,1727724752170,500.0,0.00021999,120]
[339596785,1727724752744,500.0,0.00021999,120]
[339596786,1727724753000,500.0,0.00021999,120]
[339596787,1727724753552,500.0,0.00021999,120]
[339596792,1727724755305,500.0,0.00021999,120]
[339596793,1727724755829,673.86,0.00021999,120]
[339596804,1727724760796,500.0,0.00021999,120]
[339596805,1727724760981,896.28,0.00021999,120]
[339596806,1727724761243,500.0,0.00021999,120]
[339596807,1727724761777,500.0,0.00021999,120]
[339596808,1727724763939,500.0,0.00021999,120]
[339596809,1727724764523,500.0,0.00021999,120]
[339596810,1727724767681,500.0,0.00021999,120]
[339596811,1727724768797,500.0,0.00021999,120]
[339596812,1727724770149,500.0,0.00021999,120]